bitfinex-derivatives/quotes_ETHF0:USTF0_20250908
["timestamp","ask_amount","ask_price","bid_price","bid_amount"]
[1757328303167,2.2275,4336.4,4336.3,2.432]
[1757328304582,2.2275,4336.4,4336.3,1.5141]
[1757328305076,1.6011,4336.3,4336.2,0.6579]
[1757328305279,2.2275,4336.3,4336.2,0.8909]
[1757328305581,2.2275,4336.3,4336.2,5.53409143]
[1757328312779,2.2275,4336.3,4336.2,5.30109143]
[1757328312983,2.2275,4336.3,4336.2,1.3306]
[1757328313186,2.2275,4336.3,4336.2,0.8909]
[1757328313386,10.26515679,4336.3,4336.2,0.8909]
[1757328313683,10.26515679,4336.3,4336.2,0.6579]
[1757328313874,10.26515679,4336.3,4336.2,1.8663]
[1757328314684,10.26515679,4336.3,4336.2,2.539]
[1757328317285,9.28805679,4336.3,4336.2,0.233]
[1757328317485,10.19075679,4336.3,4336.2,0.233]
[1757328317986,10.19075679,4336.3,4336.2,0.8581]
[1757328319287,10.19075679,4336.3,4336.2,1.8335]
[1757328320582,2.1531,4336.3,4336.2,1.8335]
[1757328320783,10.19075679,4336.3,4336.2,0.8581]
[1757328321588,10.19075679,4336.3,4336.2,1.8335]
[1757328322482,2.223,4335.8,4335.7,3.91919761]
[1757328322683,2.223,4335.8,4335.7,2.5062]
[1757328322891,2.223,4335.8,4335.7,7.09623795]
[1757328323186,1.5603,4335.8,4335.7,7.09623795]
[1757328324282,1.5603,4335.8,4335.7,5.45024034]
[1757328326389,0.9027,4336.4,4335.7,4.47484034]
[1757328326594,10.26065679,4336.4,4336.3,1.6005]
[1757328326891,2.223,4336.4,4336.3,1.8335]
[1757328327486,2.223,4336.4,4336.3,0.233]
[1757328327785,2.223,4336.1,4335.7,1.64553658]
[1757328327993,2.223,4335.9,4335.8,0.233]
[1757328328496,2.223,4335.9,4335.8,1.8335]
[1757328330189,1.5603,4335.9,4335.8,2.5062]
[1757328330393,2.223,4335.9,4335.8,2.5062]
[1757328333201,2.223,4335.9,4335.8,4.15173658]
[1757328333994,2.223,4335.9,4335.8,1.5308]
[1757328334193,2.223,4335.9,4335.8,2.5062]
[1757328335202,2.223,4335.9,4335.8,4.15173658]
[1757328335891,0.9027,4335.9,4335.8,4.15173658]
[1757328336091,2.1979,4336.4,4336.3,2.1742]
[1757328336299,1.5602,4336.4,4336.3,2.4072]
[1757328336496,2.1979,4336.4,4336.3,0.233]
[1757328336696,0.3775,4336.5,4336.2,1.64652924]
[1757328336697,2.1979,4336.3,4336.2,1.64652924]
[1757328336904,10.23555679,4336.3,4336.2,0.234]
[1757328337696,10.23555679,4336.3,4335.9,2.58082924]
[1757328337897,2.1979,4336.3,4336.2,0.234]
[1757328338302,10.23555679,4336.3,4336.2,0.234]
[1757328341605,0.9526,4336.2,4335.9,1.64652924]
[1757328341904,1.2453,4335.9,4335.6,1.64652924]
[1757328342109,2.1979,4335.8,4335.7,0.234]
[1757328342510,10.23555679,4335.8,4335.7,0.234]
[1757328342903,9.28295679,4335.8,4335.7,0.234]
[1757328343506,1.2453,4335.6,4335.5,1.64652924]
[1757328343714,10.23555679,4335.6,4335.5,1.88052924]
[1757328345017,10.23555679,4335.6,4335.5,4.05472924]
[1757328345312,1.6228,4336.0,4335.9,1.2399]
[1757328345509,1.2453,4336.0,4335.9,2.4082]
[1757328345813,1.6228,4336.0,4335.9,2.4082]
[1757328346015,2.5754,4336.0,4335.9,2.4082]
[1757328346402,10.61305679,4336.0,4335.9,1.4739]
[1757328346605,10.61305679,4336.0,4335.9,0.8463]
[1757328347005,10.61305679,4336.0,4335.9,0.234]
[1757328347210,10.61305679,4336.0,4335.9,1.87966878]
[1757328347612,10.61305679,4336.0,4335.9,2.49196878]
[1757328347811,10.61305679,4336.0,4335.9,3.42626878]
[1757328348315,10.61305679,4336.0,4335.9,1.7806]
[1757328349318,10.61305679,4336.0,4335.9,2.49138703]
[1757328349613,10.61305679,4336.0,4335.9,3.42568703]
[1757328349814,10.61305679,4336.0,4335.9,1.87908703]
[1757328350016,10.61305679,4336.0,4335.9,2.49138703]
[1757328350219,10.61305679,4336.0,4335.9,1.87908703]
[1757328350613,2.1979,4335.9,4335.8,1.64508703]
[1757328350913,10.23555679,4335.9,4335.8,1.87908703]
[1757328351105,2.1979,4335.9,4335.8,1.87908703]
[1757328351921,0.9526,4335.8,4335.7,1.64508703]
[1757328352218,10.23555679,4335.8,4335.5,1.64508703]
[1757328352421,10.23555679,4335.7,4335.6,0.234]
[1757328352612,2.1979,4335.7,4335.6,0.234]
[1757328353713,2.5754,4335.5,4335.4,1.64508703]
[1757328353921,10.61305679,4335.5,4335.4,1.87908703]
[1757328354317,10.61305679,4335.5,4335.4,0.234]
[1757328356322,10.61305679,4335.5,4335.4,4.05328703]
[1757328358222,10.61305679,4335.5,4335.4,2.4082]
[1757328359112,10.61305679,4335.5,4335.4,1.4739]
[1757328359320,10.61305679,4335.5,4335.4,2.4082]
[1757328359622,10.61305679,4335.5,4335.4,1.4739]
[1757328360021,10.61305679,4335.5,4335.4,0.8463]
[1757328360423,10.61305679,4335.5,4335.4,2.4082]
[1757328360623,10.61305679,4335.5,4335.4,0.234]
[1757328360922,10.61305679,4335.5,4335.4,1.7806]
[1757328361124,10.61305679,4335.5,4335.4,2.4082]
[1757328362129,10.61305679,4335.5,4335.4,0.234]
[1757328363223,10.61305679,4335.5,4335.2,1.64508703]
[1757328363421,2.5754,4335.5,4335.4,1.7806]
[1757328363921,2.5754,4336.0,4335.9,2.1742]
[1757328364133,2.5754,4336.0,4335.9,2.4082]
[1757328364322,10.61305679,4336.0,4335.9,2.4082]
[1757328365017,2.5754,4336.0,4335.9,2.4082]
[1757328365326,2.1979,4336.0,4335.9,2.4082]
[1757328366531,2.5705,4336.0,4335.9,1.4739]
[1757328366829,2.5705,4336.0,4335.9,0.8463]
[1757328367630,2.5705,4336.0,4335.9,2.3411]
[1757328368630,2.1979,4336.0,4335.9,2.3401]
[1757328369927,2.1979,4336.0,4335.9,3.98383625]
[1757328370520,10.60815679,4336.0,4335.9,1.35773625]
[1757328370725,2.1591,4334.3,4334.2,4.12636811]
[1757328370926,2.1591,4334.3,4334.1,1.14692]
[1757328371218,2.1591,4334.3,4334.2,1.5267]
[1757328371827,2.2741,4334.3,4334.2,2.1407]
[1757328372729,2.2741,4334.3,4334.2,0.6459]
[1757328373529,4.00351165,4334.3,4334.1,0.03112]
[1757328373735,2.2741,4334.3,4334.2,0.235]
[1757328374131,4.00351165,4334.3,4334.2,0.235]
[1757328375638,4.00351165,4334.3,4334.1,0.03112]
[1757328375839,3.88851165,4334.2,4334.1,0.03112]
[1757328376036,3.88851165,4334.2,4334.1,0.26612]
[1757328376234,2.1591,4334.2,4334.1,0.26612]
[1757328377833,2.1591,4334.2,4334.1,0.03112]
[1757328378033,2.1591,4334.2,4334.1,0.26612]
[1757328378439,6.1591,4334.2,4333.9,0.235]
[1757328378741,2.5317,4334.0,4333.9,0.235]
[1757328378936,0.9218,4333.9,4333.7,0.235]
[1757328379139,2.1591,4333.8,4333.7,0.235]
[1757328379335,3.88851165,4333.8,4333.7,0.235]
[1757328382840,3.88851165,4333.8,4333.1,0.8808]
[1757328383147,2.1591,4333.3,4333.2,1.7617]
[1757328383440,0.6094,4332.7,4332.6,4.46713426]
[1757328383639,2.1591,4332.7,4332.6,5.31613426]
[1757328383942,2.1591,4332.7,4332.6,2.3757]
[1757328385849,2.2742,4332.7,4332.6,2.3757]
[1757328386341,2.2742,4332.7,4332.6,2.1407]
[1757328386541,2.2742,4332.7,4332.6,2.3757]
[1757328386841,2.2742,4332.7,4332.6,2.1407]
[1757328387033,2.2742,4332.7,4332.6,2.3757]
[1757328389347,2.2742,4332.7,4332.6,2.1407]
[1757328389552,2.2742,4332.7,4332.6,2.3757]
[1757328390447,2.2742,4332.7,4332.6,2.1407]
[1757328390651,2.2742,4332.7,4332.6,2.3757]
[1757328395748,0.1151,4332.7,4332.6,2.3757]
[1757328396448,0.1151,4332.7,4332.6,9.41828172]
[1757328397448,1.5744,4333.8,4333.7,1.2331]
[1757328397751,2.2106,4333.8,4333.7,2.4299]
[1757328397952,3.94001165,4333.8,4333.7,2.4299]
[1757328400456,3.94001165,4333.8,4333.7,0.856]
[1757328400656,3.94001165,4333.8,4333.7,0.235]
[1757328404959,3.94001165,4333.8,4333.7,1.8178]
[1757328405156,3.94001165,4333.8,4333.7,2.4299]
[1757328406761,3.94001165,4333.8,4333.7,1.8178]
[1757328409359,3.94001165,4333.8,4333.7,0.235]
[1757328410056,3.94001165,4333.8,4333.7,0.856]
[1757328410260,3.94001165,4333.8,4333.7,2.4299]
[1757328410460,2.98031165,4333.8,4333.7,2.4299]
[1757328410655,1.2509,4333.8,4333.7,2.4299]
[1757328410862,2.98031165,4333.8,4333.7,2.4299]
[1757328412061,3.94001165,4333.8,4333.7,2.4299]
[1757328414563,2.2106,4333.8,4333.7,2.4299]
[1757328416867,3.94001165,4333.8,4333.7,0.235]
[1757328418164,3.94001165,4333.8,4333.7,0.856]
[1757328418363,3.94001165,4333.8,4333.7,2.4299]
[1757328420370,3.94001165,4333.8,4333.7,0.856]
[1757328420570,3.94001165,4333.8,4333.7,0.235]
[1757328427070,2.1616,4333.1,4333.0,0.234]
[1757328427274,1.254,4332.8,4332.5,34.1569]
[1757328427572,2.1616,4332.7,4332.6,0.234]
[1757328434681,2.1616,4332.7,4332.6,1.1669]
[1757328434882,2.1616,4332.7,4332.6,0.234]
[1757328436078,2.1616,4332.7,4332.6,1.7875]
[1757328436975,2.1616,4332.7,4332.6,0.8546]
[1757328437176,2.1616,4332.7,4332.6,0.234]
[1757328437381,2.1616,4332.7,4332.6,2.3984]
[1757328437382,0.636,4332.7,4332.6,2.3984]
[1757328437682,0.636,4332.8,4332.7,2.1644]
[1757328438177,1.5436,4332.8,4332.7,2.1644]
[1757328438480,1.5436,4332.8,4332.6,0.234]
[1757328438481,2.1616,4332.8,4332.6,0.234]
[1757328438678,1.254,4332.8,4332.6,1.1669]
[1757328438878,2.1616,4332.7,4332.6,1.7875]
[1757328441774,0.3601,4333.5,4332.6,2.3984]
[1757328442084,1.5436,4332.8,4332.7,2.1644]
[1757328443777,2.1616,4332.8,4332.7,2.1644]
[1757328446879,0.636,4332.8,4332.7,2.1644]
[1757328449485,0.9076,4333.1,4332.7,1.2315]
[1757328449685,1.5436,4333.1,4333.0,2.5513]
[1757328449882,2.1616,4333.1,4333.0,2.7853]
[1757328450084,2.1616,4333.1,4333.0,2.3984]
[1757328452989,2.1616,4333.1,4333.0,2.7853]
[1757328453488,2.1616,4333.1,4333.0,2.3984]
[1757328459391,0.636,4333.1,4333.0,2.774]
[1757328460597,2.0597,4333.9,4333.8,0.6006]
[1757328460888,2.87777685,4333.9,4333.8,1.4669]
[1757328461194,2.0597,4333.9,4333.8,1.4669]
[1757328462288,2.0597,4333.9,4333.8,2.0732]
[1757328464697,1.1913,4333.9,4333.8,2.0732]
[1757328465088,0.5822,4333.9,4333.8,2.0732]
[1757328468290,0.8684,4334.1,4333.8,2.0732]
[1757328468496,1.4506,4334.1,4334.0,2.4488]
[1757328468699,0.8684,4334.4,4334.1,0.8663]
[1757328468901,2.0597,4334.4,4334.3,2.0732]
[1757328471591,2.0597,4334.4,4334.3,0.234]
[1757328471794,2.0597,4334.4,4334.3,1.7009]
[1757328474604,2.0597,4334.4,4334.3,0.8346]
[1757328474905,2.0597,4334.4,4334.3,1.7009]
[1757328475905,2.0597,4334.4,4334.3,0.8346]
[1757328476103,2.0597,4334.4,4334.3,0.234]
[1757328478107,0.3461,4334.5,4333.7,0.196]
[1757328478108,1.1913,4333.8,4333.7,0.196]
[1757328478304,2.0597,4333.8,4333.7,0.196]
[1757328478610,2.0597,4333.8,4333.7,1.6629]
[1757328479011,2.0597,4333.8,4333.7,2.2692]
[1757328479607,1.4506,4333.8,4333.7,2.2692]
[1757328480911,2.0597,4334.4,4334.3,1.2069]
[1757328481218,2.0597,4334.4,4334.3,2.0732]
[1757328481808,2.0597,4334.4,4333.7,0.196]
[1757328482009,2.0597,4334.4,4333.8,0.8663]
[1757328483319,2.0597,4334.4,4333.7,0.196]
[1757328483320,2.0597,4334.4,4334.3,1.4669]
[1757328484221,2.0597,4334.4,4334.3,2.0732]
[1757328486114,1.4908,4334.9,4334.8,0.5993]
[1757328486314,2.70192009,4334.9,4334.6,0.861]
[1757328486611,2.1151,4334.7,4334.6,1.4603]
[1757328486811,2.70192009,4334.7,4334.6,1.4603]
[1757328492615,2.70192009,4334.7,4334.6,2.0343]
[1757328492815,1.58972691,4336.0,4334.6,2.0343]
[1757328493016,0.81584493,4335.9,4334.7,0.861]
[1757328493223,1.2386,4334.8,4334.7,1.4603]
[1757328493428,1.2386,4334.8,4334.7,2.0343]
[1757328493923,0.8765,4335.0,4334.7,2.0343]
[1757328494123,0.3441,4335.5,4335.4,0.5993]
[1757328494124,2.4592,4335.5,4335.4,0.5993]
[1757328494324,2.4592,4335.5,4335.2,0.861]
[1757328494822,2.4592,4335.5,4334.5,0.5853]
[1757328495023,2.4592,4335.5,4334.6,0.861]
[1757328495726,0.6243,4334.3,4334.2,1.4603]
[1757328495930,2.1151,4334.3,4334.2,1.4603]
[1757328496125,2.1151,4334.3,4334.2,2.0343]
[1757328496633,0.8765,4333.9,4333.8,33.239]
[1757328496832,2.1151,4333.7,4333.1,0.861]
[1757328497026,2.1151,4333.7,4333.1,1.095]
[1757328497729,2.1151,4333.7,4333.2,0.861]
[1757328497930,2.1151,4333.7,4333.6,2.0343]
[1757328498120,0.3441,4334.5,4333.7,0.861]
[1757328498326,1.4908,4333.8,4333.7,2.0343]
[1757328498623,2.1151,4333.8,4333.7,2.0343]
[1757328499733,2.1151,4333.8,4333.2,0.861]
[1757328500229,0.6143,4333.8,4333.7,2.0343]
[1757328500427,0.3441,4334.5,4333.7,1.1733]
[1757328500732,2.69686366,4334.4,4334.3,1.4603]
[1757328500931,0.58176366,4334.4,4334.3,2.0343]
[1757328501227,0.8765,4334.9,4334.4,0.861]
[1757328501435,2.1151,4335.0,4334.9,1.1733]
[1757328501731,2.4592,4335.0,4334.9,0.28969927]
[1757328503830,7.04086064,4335.0,4333.8,1.059]
[1757328504137,0.6143,4333.9,4333.8,2.2323]
[1757328505433,0.8765,4334.4,4333.8,1.3713]
[1757328505632,2.1151,4334.4,4334.3,0.5993]
[1757328505832,2.1151,4334.4,4334.3,1.4603]
[1757328507639,0.8765,4335.4,4334.6,0.861]
[1757328507839,2.1151,4335.4,4335.3,0.5993]
[1757328508131,2.1151,4335.4,4335.3,2.0343]
[1757328509437,2.1151,4335.4,4335.3,1.4603]
[1757328509738,0.6143,4335.4,4335.3,2.0343]
[1757328510127,2.1151,4335.4,4335.3,1.435]
[1757328510332,2.1151,4335.4,4335.1,0.861]
[1757328510836,2.1151,4335.4,4335.0,0.3513]
[1757328511030,2.1151,4335.4,4335.1,0.861]
[1757328511334,2.1151,4335.4,4335.0,0.3513]
[1757328511534,0.3441,4336.5,4335.3,1.1733]
[1757328511725,0.3441,4336.5,4335.7,1.1733]
[1757328511726,0.58141262,4335.9,4335.7,1.1733]
[1757328512042,2.1151,4336.2,4336.1,2.0343]
[1757328512237,1.2386,4336.2,4336.1,2.0343]
[1757328512440,0.6143,4336.6,4336.5,2.3856]
[1757328512742,2.1151,4336.6,4336.5,2.3856]
[1757328513139,2.1151,4336.6,4336.5,2.0343]
[1757328513534,1.2386,4336.6,4336.5,2.3856]
[1757328513740,1.4908,4336.9,4336.8,2.0343]
[1757328514135,2.1151,4336.9,4336.8,2.0343]
[1757328516342,1.2386,4336.9,4336.8,2.0343]
[1757328517042,2.064,4336.9,4336.8,2.0343]
[1757328517936,2.064,4336.9,4336.8,1.4603]
[1757328518836,2.06902691,4338.6,4338.0,0.3336]
[1757328519131,0.3441,4339.5,4338.0,0.3336]
[1757328519132,2.0192,4338.7,4338.6,1.4499]
[1757328519330,0.8254,4338.6,4338.1,0.8831]
[1757328519533,2.0192,4338.2,4338.1,0.8831]
[1757328519735,2.0192,4338.2,4338.1,2.0075]
[1757328520344,1.1938,4338.2,4338.1,2.0075]
[1757328520641,1.3638,4338.9,4338.8,2.0075]
[1757328521244,2.1892,4338.9,4338.8,2.0075]
[1757328521647,0.7613,4338.9,4338.8,2.0075]
[1757328522846,0.17,4338.9,4338.8,2.0075]
[1757328524649,0.7613,4338.9,4338.8,2.0075]
[1757328525050,0.17,4338.9,4338.8,2.0075]
[1757328528245,2.0,4339.3,4339.2,2.0075]
[1757328528439,2.0,4339.3,4339.2,2.2435]
[1757328530250,2.5913,4339.3,4339.2,2.2435]
[1757328531950,2.0,4339.3,4339.2,2.2435]
[1757328532353,2.5913,4339.3,4339.2,2.2435]
[1757328532851,2.0,4339.3,4339.2,2.2435]
[1757328533150,2.5913,4339.3,4339.2,2.0075]
[1757328533346,4.0192,4339.3,4339.2,1.1191]
[1757328533550,4.0192,4339.3,4339.2,0.236]
[1757328533853,4.0192,4339.3,4339.0,0.8831]
[1757328534058,4.0192,4339.3,4338.6,0.8831]
[1757328534254,2.0192,4338.5,4338.4,34.0971]
[1757328534554,1.1938,4338.5,4338.4,34.3331]
[1757328534742,0.5913,4338.5,4338.4,34.3331]
[1757328535954,1.4167,4338.5,4338.4,34.3331]
[1757328536142,1.4167,4338.5,4338.4,34.0971]
[1757328536347,1.4167,4338.5,4338.4,34.3331]
[1757328536655,2.3778,4338.5,4337.6,0.8831]
[1757328536849,2.3778,4338.5,4337.7,0.236]
[1757328537252,2.60832,4338.5,4337.7,0.236]
[1757328537556,2.3778,4338.5,4338.1,0.8831]
[1757328537749,2.3778,4338.5,4337.7,0.236]
[1757328537950,2.3778,4338.5,4337.8,0.8831]
[1757328538851,2.3778,4338.5,4337.7,0.236]
[1757328538852,1.1938,4338.5,4338.4,2.0075]
[1757328539059,0.8254,4338.9,4338.5,0.3336]
[1757328539356,2.0192,4338.9,4338.8,2.0075]
[1757328539557,2.59524779,4338.9,4338.8,1.4499]
[1757328540056,0.5913,4338.9,4338.8,2.0075]
[1757328540259,1.16772468,4338.9,4338.8,2.0075]
[1757328540956,2.59562468,4338.9,4338.5,1.2167]
[1757328541252,2.0192,4338.8,4338.7,0.5668]
[1757328541459,2.59611606,4338.8,4338.7,2.0075]
[1757328542451,2.59611606,4338.8,4338.0,0.3336]
[1757328542647,1.77071606,4338.7,4338.6,1.4499]
[1757328542853,2.59611606,4338.7,4338.6,2.0075]
[1757328543457,2.59611606,4338.7,4338.6,2.29092127]
[1757328543652,2.59611606,4338.7,4338.6,0.28342127]
[1757328543853,2.59611606,4338.7,4338.6,2.29092127]
[1757328544053,1.77071606,4338.7,4338.6,2.29092127]
[1757328544359,0.57691606,4338.7,4338.6,2.29092127]
[1757328544652,1.99467387,4339.0,4338.9,1.1244]
[1757328544858,2.59717387,4339.0,4338.9,2.0075]
[1757328546360,1.16927387,4339.0,4338.9,2.29140128]
[1757328546762,2.62827387,4339.0,4338.9,2.29140128]
[1757328547560,2.62827387,4339.0,4338.9,2.0075]
[1757328548361,2.62827387,4339.0,4338.9,1.73433575]
[1757328549154,2.99087387,4339.0,4338.9,0.28443575]
[1757328550459,6.99087387,4339.0,4338.1,0.871]
[1757328550662,2.022,4338.3,4338.2,0.28452462]
[1757328550862,2.59997387,4338.3,4338.2,0.28452462]
[1757328551058,2.59997387,4338.3,4338.2,1.71442462]
[1757328551763,2.59997387,4338.3,4338.2,2.27702462]
[1757328551959,2.59997387,4338.3,4338.2,1.71442462]
[1757328552863,2.59997387,4338.3,4338.2,0.28452462]
[1757328554861,6.83597387,4338.3,4337.3,1.107]
[1757328555062,2.022,4337.5,4337.4,0.28454076]
[1757328555259,2.59997387,4337.5,4337.4,0.28454076]
[1757328555460,2.59997387,4337.5,4337.4,0.84344076]
[1757328555660,2.59997387,4337.5,4337.4,1.71444076]
[1757328556175,7.42512387,4337.5,4336.1,0.871]
[1757328556366,0.8827,4336.6,4336.1,1.9925]
[1757328556663,2.022,4336.6,4336.5,1.9925]
[1757328556865,2.022,4336.6,4335.5,0.3546]
[1757328556866,2.6013468,4336.6,4335.5,0.3546]
[1757328557072,0.563,4335.7,4335.6,1.9925]
[1757328557372,0.8827,4336.4,4335.7,0.871]
[1757328557574,2.022,4335.8,4335.7,1.4299]
[1757328557763,2.022,4335.8,4335.7,1.9925]
[1757328558070,2.022,4335.6,4335.5,1.9925]
[1757328558371,1.1393,4335.6,4335.5,2.3471]
[1757328559260,1.1393,4335.6,4335.0,0.3546]
[1757328559466,2.022,4335.1,4335.0,1.7845]
[1757328559963,2.022,4335.1,4335.0,2.3471]
[1757328560168,1.1393,4335.1,4335.0,2.3471]
[1757328560762,0.152,4335.8,4335.0,2.3471]
[1757328560964,2.091,4336.2,4336.1,1.4299]
[1757328562277,2.091,4336.2,4335.1,0.871]
[1757328563075,2.022,4335.1,4335.0,0.871]
[1757328563273,2.022,4335.1,4335.0,2.3471]
[1757328563463,2.022,4335.7,4335.6,1.9925]
[1757328563665,1.1393,4335.7,4335.6,1.9925]
[1757328564472,2.022,4335.7,4335.6,1.9925]
[1757328564672,0.563,4335.7,4335.6,1.9925]
[1757328565075,0.563,4336.1,4336.0,2.3471]
[1757328566970,0.563,4336.2,4336.1,1.9925]
[1757328567664,0.236,4336.5,4336.2,0.871]
[1757328567869,0.563,4336.3,4336.2,1.9925]
[1757328568070,1.1393,4336.3,4336.2,1.9925]
[1757328569074,0.8827,4336.6,4336.2,1.9925]
[1757328569272,0.563,4337.0,4336.9,0.871]
[1757328569576,0.563,4337.0,4336.9,1.9925]
[1757328569974,2.022,4337.4,4337.3,0.5589]
[1757328570277,2.022,4337.4,4337.3,1.4299]
[1757328570770,2.022,4337.4,4337.0,0.3546]
[1757328570971,1.1393,4337.2,4337.1,0.871]
[1757328571176,2.022,4337.2,4337.1,0.871]
[1757328571568,2.022,4337.2,4336.6,0.871]
[1757328572671,2.022,4337.2,4337.1,1.4299]
[1757328573072,0.563,4337.2,4337.1,1.9925]
[1757328573381,0.8827,4337.5,4337.1,1.9925]
[1757328573567,0.8827,4337.9,4337.2,0.871]
[1757328573775,0.563,4337.3,4337.2,1.4299]
[1757328573973,1.1393,4337.3,4337.2,1.9925]
[1757328574282,2.022,4337.3,4337.2,1.9925]
[1757328574594,2.022,4337.3,4336.6,1.107]
[1757328574766,0.3346,4337.5,4336.6,1.107]
[1757328574972,2.022,4336.7,4336.6,1.4299]
[1757328576676,2.022,4336.7,4335.9,0.8464]
[1757328576986,1.1393,4336.7,4336.0,1.1796]
[1757328577174,1.122,4336.1,4336.0,2.3155]
[1757328577369,0.8126,4336.4,4336.0,2.3155]
[1757328577579,0.8126,4336.9,4336.1,0.8464]
[1757328577877,0.5426,4336.2,4336.1,1.4366]
[1757328578076,0.5426,4336.2,4336.1,1.9823]
[1757328580582,1.9346,4336.2,4336.1,1.9823]
[1757328581182,1.9346,4336.2,4336.1,0.5902]
[1757328581683,1.9346,4336.2,4336.1,1.4366]
[1757328581883,0.5426,4336.2,4336.1,1.9823]
[1757328582076,0.8126,4336.6,4336.1,1.1359]
[1757328582383,1.122,4336.6,4336.0,0.3332]
[1757328582583,0.5426,4336.1,4336.0,2.3155]
[1757328583280,1.9346,4335.6,4335.0,0.3546]
[1757328583474,0.3343,4335.5,4335.0,0.3332]
[1757328583680,1.9346,4335.4,4335.3,1.9823]
[1757328584087,1.9346,4336.2,4336.1,0.5902]
[1757328584288,2.51430068,4336.2,4336.1,1.4366]
[1757328584989,2.51430068,4336.2,4336.1,1.9823]
[1757328589181,2.51430068,4336.2,4335.5,0.3332]
[1757328589385,0.5426,4335.7,4335.6,1.9823]
[1757328590088,1.9346,4335.7,4335.6,1.9823]
[1757328590389,1.9346,4335.7,4335.6,1.4366]
[1757328590784,1.9346,4335.7,4335.6,0.5902]
[1757328591185,0.122,4335.7,4335.6,0.5902]
[1757328591388,0.4736,4335.7,4335.6,1.4366]
[1757328592295,0.6934,4335.7,4335.6,0.8464]
[1757328592487,0.7032,4335.3,4335.1,0.8464]
[1757328592684,0.7032,4335.3,4335.2,1.4366]
[1757328592884,0.7032,4335.3,4335.2,1.9823]
[1757328593185,0.3516,4335.6,4335.5,0.3332]
[1757328593489,0.3516,4335.6,4335.5,2.3155]
[1757328594988,0.236,4336.3,4335.6,0.8464]
[1757328595186,0.81073993,4336.2,4335.6,0.8464]
[1757328595390,0.3516,4335.7,4335.6,1.9823]
[1757328595690,0.93170993,4335.7,4335.6,1.9823]
[1757328596287,0.3516,4335.7,4335.6,1.9823]
[1757328596888,0.7032,4336.7,4336.6,1.9823]
[1757328597101,1.50286549,4336.7,4336.6,0.8464]
[1757328597283,1.50286549,4336.7,4336.0,0.9234]
[1757328597284,0.7032,4336.1,4336.0,0.9234]
[1757328597790,0.7032,4336.1,4336.0,2.3155]
[1757328598784,0.3516,4336.1,4336.0,2.3155]
[1757328599189,1.47962691,4337.4,4336.0,2.3155]
[1757328599391,0.3516,4336.1,4336.0,1.4691]
[1757328599894,0.3516,4336.1,4336.0,2.3155]
[1757328601289,0.9412,4336.6,4336.5,2.3155]
[1757328601491,1.52122106,4336.6,4336.5,2.3155]
[1757328602292,1.52122106,4336.6,4336.5,1.7698]
[1757328603696,1.52122106,4336.6,4336.0,0.3332]
[1757328603697,1.74102106,4336.6,4336.1,0.8464]
[1757328603898,0.7032,4336.2,4336.1,1.4366]
[1757328604200,1.28346999,4336.2,4336.1,1.4366]
[1757328604492,1.28346999,4336.2,4336.1,1.9823]
[1757328605792,0.58026999,4336.2,4336.1,1.9823]
[1757328606195,0.237,4336.8,4336.5,0.3396]
[1757328606395,0.3166,4336.6,4336.5,2.2723]
[1757328606594,0.58063863,4336.6,4336.5,2.2723]
[1757328606793,0.5536,4337.1,4337.0,1.4586]
[1757328607095,0.5536,4337.1,4337.0,2.2723]
[1757328607300,0.8702,4337.1,4337.0,2.2723]
[1757328607488,1.45077676,4337.1,4337.0,2.2723]
[1757328609601,0.5536,4338.1,4338.0,1.7176]
[1757328609896,33.228,4338.4,4338.0,1.4586]
[1757328610098,0.5536,4338.2,4338.1,1.9327]
[1757328611496,33.228,4338.4,4338.1,1.9327]
[1757328611693,33.467,4338.4,4338.3,1.119]
[1757328611894,34.0206,4338.4,4338.3,1.9327]
[1757328612300,34.5779,4338.4,4338.3,1.9327]
[1757328612802,35.3563,4338.4,4338.3,1.9327]
[1757328613899,34.5779,4338.4,4338.3,1.9327]
[1757328614099,34.0206,4338.4,4338.3,1.9327]
[1757328614599,2.5536,4339.3,4339.2,0.5547]
[1757328614797,3.3489,4339.3,4339.2,1.3684]
[1757328615595,4.1273,4339.3,4339.2,1.3684]
[1757328615800,3.3489,4339.3,4339.0,1.1533]
[1757328615998,1.8893,4339.1,4339.0,1.708]
[1757328617302,1.8893,4339.1,4338.5,0.3396]
[1757328617505,1.1109,4338.7,4338.6,1.119]
[1757328617796,1.1109,4338.7,4338.6,1.9327]
[1757328618194,0.7784,4338.6,4338.1,0.8137]
[1757328618395,0.5536,4338.2,4338.1,1.9327]
[1757328618906,0.238,4338.9,4338.5,0.3396]
[1757328619100,0.5536,4338.6,4338.5,2.2723]
[1757328619495,1.1109,4338.6,4338.5,2.2723]
[1757328619697,0.5536,4338.6,4338.5,2.2723]
[1757328620101,1.8893,4338.6,4338.5,0.3396]
[1757328620307,1.8893,4338.6,4338.5,1.708]
[1757328620709,1.8893,4338.6,4338.5,0.8137]
[1757328621006,1.8893,4338.6,4338.0,0.3396]
[1757328621207,1.8893,4338.1,4338.0,1.708]
[1757328621707,1.1109,4338.1,4338.0,1.708]
[1757328622306,0.7784,4339.1,4338.1,0.8137]
[1757328622500,1.6859702,4339.0,4338.9,1.3684]
[1757328622802,2.7023702,4339.0,4338.5,0.3396]
[1757328623107,1.8893,4338.7,4338.6,0.8137]
[1757328623405,1.8893,4338.7,4338.6,1.3684]
[1757328624313,1.1109,4338.7,4338.6,1.3684]